bitfinex/quotes_ETHUSD_20230111
["timestamp","ask_amount","ask_price","bid_price","bid_amount"]
[1673432068698,1.12062524,1336.5,1336.3,7.54934]
[1673432069746,2.80351988,1336.5,1336.3,7.54934]
[1673432074915,2.80351988,1336.5,1336.3,7.54594426]
[1673432077953,1.12062524,1336.4,1336.3,7.54594426]
[1673432078328,1.12062524,1336.4,1336.3,9.40273074]
[1673432078829,2.80351988,1336.5,1336.3,9.40273074]
[1673432079041,2.80351988,1336.5,1336.3,7.54594426]
[1673432080823,2.80351988,1336.5,1336.3,15.02928426]
[1673432081983,1.12062524,1336.4,1336.3,15.02928426]
[1673432082295,2.80351988,1336.5,1336.3,16.886053]
[1673432082522,1.12062524,1336.4,1336.3,15.02928426]
[1673432082825,1.68289464,1336.5,1336.3,16.88608385]
[1673432082826,2.80351988,1336.5,1336.3,16.88608385]
[1673432082988,2.80351988,1336.5,1336.3,15.02928426]
[1673432083631,1.12062524,1336.4,1336.3,15.02928426]
[1673432083843,1.68289464,1336.5,1336.3,15.02928426]
[1673432083844,2.80351988,1336.5,1336.3,16.88604468]
[1673432084067,2.80351988,1336.5,1336.3,15.02928426]
[1673432084668,2.80351988,1336.5,1336.3,17.81448434]
[1673432084885,2.80351988,1336.5,1336.3,15.02928426]
[1673432085456,2.80351988,1336.5,1336.3,7.54594426]
[1673432086559,2.80351988,1336.5,1336.3,0.066]
[1673432086809,2.80351988,1336.5,1336.3,7.48332]
[1673432087143,2.80351988,1336.5,1336.3,7.54932]
[1673432087503,2.80351988,1336.5,1336.3,0.066]
[1673432087715,2.80351988,1336.5,1336.2,36.58058639]
[1673432087946,1.12062524,1336.4,1336.3,1.85676842]
[1673432090987,2.80351988,1336.4,1336.3,1.85676842]
[1673432093203,2.80351988,1336.4,1336.2,12.44852306]
[1673432093425,2.80351988,1336.4,1336.2,9.66332298]
[1673432094248,1.12062524,1336.3,1336.2,8.5421]
[1673432094455,1.12062524,1336.3,1336.2,10.39899856]
[1673432094702,2.81789437,1336.4,1336.2,18.01192154]
[1673432095011,1.13499973,1336.4,1336.3,2.9775238]
[1673432095223,1.36499973,1336.4,1336.3,2.9775238]
[1673432095437,1.36499973,1336.4,1336.3,10.4608638]
[1673432095604,1.36499973,1336.4,1336.3,10.5268638]
[1673432096013,1.36499973,1336.4,1336.3,3.0435238]
[1673432096222,1.36499973,1336.4,1336.3,2.9775238]
[1673432097707,1.36499973,1336.4,1336.3,10.4608638]
[1673432097948,1.36499973,1336.4,1336.3,10.5268638]
[1673432098293,1.12062524,1336.4,1336.3,10.5268638]
[1673432100956,1.12062524,1336.4,1336.3,3.0435238]
[1673432101166,1.12062524,1336.4,1336.3,2.9775238]
[1673432101808,1.12062524,1336.4,1336.3,10.4608638]
[1673432102065,1.12062524,1336.4,1336.3,10.5268638]
[1673432102224,1.12062524,1336.4,1336.3,3.0435238]
[1673432102426,1.12062524,1336.4,1336.3,2.9775238]
[1673432104362,1.12062524,1336.4,1336.3,10.4608638]
[1673432104616,1.12062524,1336.4,1336.3,10.5268638]
[1673432105188,1.12062524,1336.4,1336.3,19.13142678]
[1673432106148,2.80351988,1336.5,1336.3,19.13142678]
[1673432106374,2.80351988,1336.5,1336.4,1.85671633]
[1673432106972,2.80351988,1336.5,1336.4,9.33949633]
[1673432107192,2.80351988,1336.5,1336.4,9.40549633]
[1673432108456,2.80351988,1336.5,1336.4,1.92271633]
[1673432108641,2.80351988,1336.5,1336.4,1.85671633]
[1673432110345,1.12062524,1336.5,1336.4,1.85671633]
[1673432110576,2.80351988,1336.5,1336.4,1.85671633]
[1673432110889,2.80351988,1336.5,1336.4,3.08164401]
[1673432111266,1.12062524,1336.5,1336.4,3.08164401]
[1673432112417,2.80351988,1336.5,1336.4,3.08164401]
[1673432114253,1.12062524,1336.5,1336.4,3.08164401]
[1673432114629,2.80351988,1336.5,1336.4,1.22492768]
[1673432116095,2.80351988,1336.5,1336.4,3.08164183]
[1673432116346,2.80351988,1336.5,1336.4,1.22492768]
[1673432117252,2.80351988,1336.5,1336.4,1.50312768]
[1673432123396,2.80351988,1336.5,1336.4,8.98590768]
[1673432123602,2.80351988,1336.5,1336.4,9.05190768]
[1673432124421,2.80351988,1336.5,1336.4,10.90860103]
[1673432125234,1.12062524,1336.5,1336.4,10.90860103]
[1673432126180,1.12062524,1336.5,1336.4,10.905596]
[1673432135266,11.99031418,1336.6,1336.4,10.905596]
[1673432135590,11.99031418,1336.6,1336.4,9.04890265]
[1673432135742,3.72981418,1336.6,1336.4,9.04890265]
[1673432135954,3.66381418,1336.6,1336.4,9.04890265]
[1673432138262,1.12062524,1336.5,1336.4,9.04890265]
[1673432138471,1.12062524,1336.5,1336.4,10.90551109]
[1673432145736,1.12062524,1336.5,1336.4,3.42273109]
[1673432145950,1.12062524,1336.5,1336.4,3.35673109]
[1673432153252,3.65508084,1336.5,1336.4,3.35673109]
[1673432153622,1.9721862,1336.5,1336.4,3.35673109]
[1673432156613,3.65508084,1336.5,1336.4,3.35673109]
[1673432157566,1.12062524,1336.5,1336.4,11.96073407]
[1673432157776,1.12062524,1336.5,1336.4,19.92348808]
[1673432157932,2.80351988,1336.6,1336.4,18.27791246]
[1673432158295,2.80351988,1336.6,1336.5,1.85660844]
[1673432158870,2.80351988,1336.6,1336.5,13.76960414]
[1673432159084,1.12062524,1336.6,1336.5,16.88363709]
[1673432159291,2.86951988,1336.7,1336.6,1.12062524]
[1673432159562,1.12062524,1336.7,1336.6,8.60228524]
[1673432159712,1.12062524,1336.7,1336.6,8.66828524]
[1673432160043,1.14235197,1336.8,1336.6,29.18360392]
[1673432161091,1.14235197,1336.8,1336.6,31.98882162]
[1673432161411,1.14235197,1336.8,1336.6,25.45918893]
[1673432162356,1.14235197,1336.8,1336.6,29.88996463]
[1673432162817,1.14235197,1336.8,1336.7,1.34014792]
[1673432163765,1.14235197,1336.8,1336.6,24.33796595]
[1673432165143,1.14235197,1336.8,1336.6,28.76874165]
[1673432165353,1.14235197,1336.8,1336.7,2.87687417]
[1673432165521,1.14235197,1336.8,1336.6,28.76874165]
[1673432165522,1.14235197,1336.8,1336.6,24.33796595]
[1673432165738,0.02172673,1336.8,1336.6,24.33796595]
[1673432166601,1.14235197,1336.8,1336.6,24.33796595]
[1673432167232,1.14235197,1336.8,1336.6,21.55276587]
[1673432169037,1.14235197,1336.8,1336.6,16.16996286]
[1673432169615,0.02172673,1336.8,1336.6,16.16996286]
[1673432170164,1.14235197,1336.8,1336.6,16.16996286]
[1673432171034,0.02172673,1336.8,1336.6,16.16996286]
[1673432172814,0.08420546,1336.8,1336.6,16.16996286]
[1673432173024,0.02172673,1336.8,1336.6,16.16996286]
[1673432176879,1.14235197,1336.8,1336.6,16.16996286]
[1673432177879,0.02172673,1336.8,1336.6,16.16996286]
[1673432183341,0.02172673,1336.8,1336.7,2.5]
[1673432183491,1.14235197,1336.8,1336.6,16.16634635]
[1673432184129,0.02172673,1336.8,1336.6,16.16634635]
[1673432185269,0.02172673,1336.8,1336.6,27.87086699]
[1673432185863,0.02172673,1336.8,1336.7,7.48111]
[1673432186039,0.02172673,1336.8,1336.7,7.54711]
[1673432189263,1.14235197,1336.8,1336.7,7.54711]
[1673432189421,0.02172673,1336.8,1336.7,7.54711]
[1673432189632,1.14235197,1336.8,1336.7,7.54711]
[1673432189954,0.02172673,1336.8,1336.7,7.54711]
[1673432191472,1.14235197,1336.8,1336.7,7.54711]
[1673432192898,0.02172673,1336.8,1336.7,7.54711]
[1673432193313,1.14235197,1336.8,1336.7,7.54711]
[1673432193939,1.14235197,1336.8,1336.7,0.066]
[1673432194203,1.14235197,1336.8,1336.6,23.1733834]
[1673432194390,1.14235197,1336.8,1336.6,27.87033699]
[1673432195461,1.14235197,1336.8,1336.6,30.65477756]
[1673432196304,1.14435197,1336.8,1336.6,30.65277756]
[1673432196480,1.14235197,1336.8,1336.6,30.65477756]
[1673432196678,1.14235197,1336.8,1336.6,15.69171756]
[1673432196886,2.82524661,1336.8,1336.6,8.68441635]
[1673432197464,1.12062524,1336.7,1336.6,8.68441635]
[1673432197628,1.12062524,1336.7,1336.6,13.32527224]
[1673432199408,1.12062524,1336.7,1336.6,20.80693224]
[1673432201633,1.12062524,1336.7,1336.6,21.92815522]
[1673432202130,1.12062524,1336.7,1336.6,20.80693224]
[1673432203324,1.12062524,1336.7,1336.6,25.77412609]
[1673432203668,1.12062524,1336.7,1336.6,26.89534907]
[1673432203827,1.12062524,1336.7,1336.6,25.77412609]
[1673432204291,1.12062524,1336.7,1336.6,20.80693224]
[1673432205036,1.12062524,1336.7,1336.6,21.92815522]
[1673432208512,1.12201479,1336.7,1336.6,21.92815522]
[1673432208670,1.12201227,1336.7,1336.6,21.92815522]
[1673432208880,1.70462137,1336.8,1336.6,21.92815522]
[1673432209129,1.70462137,1336.8,1336.7,1.85633869]
[1673432209742,3.94848089,1336.8,1336.6,27.55347653]
[1673432209955,1.12205947,1336.7,1336.6,27.55347653]
[1673432210163,1.12205947,1336.7,1336.6,34.19135504]
[1673432211010,1.12204846,1336.7,1336.6,34.19135504]
[1673432211232,1.12205267,1336.7,1336.6,34.19135504]
[1673432212493,1.12209008,1336.7,1336.6,34.19135504]
[1673432213585,1.12208928,1336.7,1336.6,34.19135504]
[1673432214489,1.12208928,1336.7,1336.6,33.07434631]
[1673432215094,1.12212727,1336.7,1336.6,33.07434631]
[1673432216035,1.12218581,1336.7,1336.6,33.07434631]
[1673432216278,1.77062137,1336.8,1336.6,33.07434631]
[1673432216279,1.70462137,1336.8,1336.6,33.07434631]
[1673432216490,1.70462137,1336.8,1336.7,1.85632552]
[1673432216704,2.82678407,1336.8,1336.7,1.85632552]
[1673432217442,2.82678407,1336.8,1336.7,9.33743552]
[1673432217664,2.82678407,1336.8,1336.7,9.40343552]
[1673432218671,1.70462137,1336.8,1336.7,9.40343552]
[1673432219536,2.82673861,1336.8,1336.7,9.40343552]
[1673432222285,2.82673861,1336.8,1336.7,16.88454552]
[1673432223112,2.82673861,1336.8,1336.7,9.40343552]
[1673432227242,1.70662137,1336.8,1336.7,7.54511]
[1673432227393,1.70462137,1336.8,1336.7,7.54711]
[1673432227608,1.70462137,1336.8,1336.7,9.40341318]
[1673432227854,1.70462137,1336.8,1336.7,9.40340936]
[1673432229559,1.70462137,1336.8,1336.7,7.54711]
[1673432230148,1.70462137,1336.8,1336.7,9.40342406]
[1673432231125,2.82664577,1336.8,1336.7,9.40342406]
[1673432231341,1.70462137,1336.8,1336.7,9.40342406]
[1673432233017,1.70462137,1336.8,1336.7,7.54711]
[1673432236876,3.94848089,1336.8,1336.7,7.54711]
[1673432237118,5.92483939,1336.8,1336.7,0.066]
[1673432237331,5.92483939,1336.8,1336.5,19.76772298]
[1673432237332,11.45752987,1336.8,1336.5,19.76772298]
[1673432237545,1.1221559,1336.6,1336.5,19.76772298]
[1673432237868,3.92754567,1336.6,1336.5,0.06288639]
[1673432238047,2.53876836,1336.6,1336.4,7.82364639]
[1673432238227,1.12132205,1336.5,1336.4,7.82361639]
[1673432238443,1.12132205,1336.5,1336.4,2.19777614]
[1673432238690,1.12132205,1336.5,1336.4,2.13488975]
[1673432239018,1.12132205,1336.5,1336.4,0.2782]
[1673432240168,1.74393109,1336.5,1336.4,0.2782]
[1673432240361,9.22615109,1336.5,1336.4,0.2782]
[1673432240536,2.03993109,1336.5,1336.4,0.2782]
[1673432240745,1.97393109,1336.5,1336.4,0.2782]
[1673432241218,1.97393109,1336.5,1336.4,7.76098]
[1673432241391,1.12132205,1336.5,1336.4,15.30664639]
[1673432241620,2.80455591,1336.6,1336.4,15.30664639]
[1673432243377,1.12132205,1336.6,1336.4,15.30664639]
[1673432243622,1.12132205,1336.6,1336.4,22.78942639]
[1673432245592,14.16592016,1336.7,1336.4,22.78942639]
[1673432245593,13.0429304,1336.7,1336.4,22.78942639]
[1673432245833,11.3629304,1336.7,1336.4,22.78942639]
[1673432248631,11.3629304,1336.7,1336.4,15.30464639]
[1673432248837,11.3629304,1336.7,1336.4,22.78942639]
[1673432250560,3.4462304,1336.7,1336.4,22.78942639]
[1673432250768,3.3802304,1336.7,1336.4,22.78942639]
[1673432250976,2.8189304,1336.7,1336.4,22.78942639]
[1673432252112,1.13569654,1336.7,1336.4,25.57421354]
[1673432254407,1.13569654,1336.7,1336.4,30.00498924]
[1673432254624,1.13569654,1336.7,1336.4,36.09087997]
[1673432254978,1.13569654,1336.7,1336.4,31.66010427]
[1673432256668,1.13569654,1336.7,1336.4,36.09087997]
[1673432257198,20.38029671,1336.7,1336.4,0.34108639]
[1673432257348,5.48352671,1336.7,1336.4,0.2782]
[1673432257566,12.96493671,1336.7,1336.4,0.2782]
[1673432257910,1.12132205,1336.6,1336.4,0.2782]
[1673432258432,9.52461836,1336.6,1336.4,0.2782]
[1673432258635,9.59061836,1336.6,1336.4,0.2782]
[1673432259484,2.10891836,1336.6,1336.4,0.2782]
[1673432259699,2.04291836,1336.6,1336.4,0.2782]
[1673432260052,17.00653836,1336.6,1336.4,0.2782]
[1673432260188,17.07253836,1336.6,1336.4,0.2782]
[1673432260642,9.59057836,1336.6,1336.4,0.2782]
[1673432262639,18.75547222,1336.6,1336.4,0.2782]
[1673432262845,11.27381222,1336.6,1336.4,0.2782]
[1673432265490,26.23713222,1336.6,1336.4,0.2782]
[1673432265645,18.75547222,1336.6,1336.4,0.2782]
[1673432267371,22.55313286,1336.6,1336.4,0.2782]
[1673432267694,0.982,1336.5,1336.4,0.27507241]
[1673432268170,0.984,1336.5,1336.4,0.27507241]
[1673432268413,0.982,1336.5,1336.4,0.27507241]
[1673432268590,0.23,1336.5,1336.4,0.27507241]
[1673432271633,16.09435786,1336.5,1336.4,0.27507241]
[1673432271906,31.68847581,1336.5,1336.4,0.27507241]
[1673432272068,33.93278762,1336.5,1336.4,0.27507241]
[1673432272284,31.68847581,1336.5,1336.4,0.27507241]
[1673432273681,33.93278762,1336.5,1336.4,0.27507241]
[1673432273905,31.68847581,1336.5,1336.4,0.27507241]
[1673432274120,33.93278762,1336.5,1336.4,0.27507241]
[1673432275751,31.68847581,1336.5,1336.4,0.27507241]
[1673432276003,33.93278762,1336.5,1336.4,0.27507241]
[1673432276219,31.68847581,1336.5,1336.4,0.27507241]
[1673432278066,33.93278762,1336.5,1336.4,0.27507241]
[1673432278279,31.68847581,1336.5,1336.4,0.27507241]
[1673432280269,32.80904556,1336.5,1336.4,0.27507241]
[1673432281262,26.45056762,1336.5,1336.4,0.27507241]
[1673432282008,24.20625581,1336.5,1336.4,0.27507241]
[1673432282555,25.32676554,1336.5,1336.4,0.27507241]
[1673432283654,24.20625581,1336.5,1336.4,0.27507241]
[1673432284306,24.19625581,1336.5,1336.4,0.27507241]
[1673432284472,24.19525581,1336.5,1336.4,0.27507241]
[1673432288243,31.67747581,1336.5,1336.4,0.27507241]
[1673432289039,32.79781585,1336.5,1336.4,0.27507241]
[1673432289669,25.31559585,1336.5,1336.4,0.27507241]
[1673432291867,32.79781585,1336.5,1336.4,0.27507241]
[1673432292553,25.31559585,1336.5,1336.4,0.27507241]
[1673432294072,24.19525581,1336.5,1336.4,0.27507241]
[1673432294753,25.31601481,1336.5,1336.4,0.27507241]
[1673432294970,24.19525581,1336.5,1336.4,0.27507241]
[1673432296639,26.43956762,1336.5,1336.4,0.27507241]
[1673432298369,33.92178762,1336.5,1336.4,0.27507241]
[1673432298528,33.91798885,1336.5,1336.4,0.27507241]
[1673432298739,26.43576885,1336.5,1336.4,0.27507241]
[1673432299751,33.91798885,1336.5,1336.4,0.27507241]
[1673432300889,32.23475499,1336.5,1336.4,0.27507241]
[1673432301627,32.79605499,1336.5,1336.4,0.27507241]
[1673432301869,35.59977363,1336.5,1336.4,0.27507241]
[1673432302099,32.79605499,1336.5,1336.4,0.27507241]
[1673432302519,35.59977363,1336.5,1336.4,0.27507241]
[1673432304600,30.55174318,1336.5,1336.4,0.27507241]
[1673432305034,50.55174318,1336.5,1336.4,0.27507241]
[1673432305699,53.3561689,1336.5,1336.4,0.27507241]
[1673432305854,50.55174318,1336.5,1336.4,0.27507241]
[1673432306329,53.35637398,1336.5,1336.4,0.27507241]
[1673432309440,55.60220555,1336.5,1336.4,0.27507241]
[1673432309650,50.56374318,1336.5,1336.4,0.27507241]
[1673432309852,53.92820555,1336.5,1336.4,0.27507241]
[1673432311026,50.56374318,1336.5,1336.4,0.27507241]
[1673432311634,56.92820555,1336.5,1336.4,0.27507241]
[1673432311846,75.41920555,1336.5,1336.4,0.27507241]
[1673432312097,83.51109036,1336.5,1336.0,0.11992001]
[1673432312416,10.13820394,1336.1,1336.0,0.05703362]
[1673432312644,13.26099409,1336.1,1336.0,0.05703362]
[1673432312854,14.31963207,1336.1,1336.0,0.05703362]
[1673432313001,16.81963207,1336.1,1336.0,0.05703362]
[1673432313207,14.31963207,1336.1,1336.0,0.05703362]
[1673432313418,21.80409207,1336.1,1336.0,0.05703362]
[1673432314268,21.79021862,1336.1,1336.0,0.05703362]
[1673432320404,29.27467862,1336.1,1336.0,0.05703362]
[1673432322384,35.07626162,1336.1,1336.0,0.05703362]
[1673432322627,36.76226162,1336.1,1336.0,0.05703362]
[1673432323452,41.81476162,1336.1,1336.0,0.05703362]
[1673432323642,40.13188817,1336.1,1336.0,0.05703362]
[1673432324400,41.81476162,1336.1,1336.0,0.05703362]
[1673432324983,41.81450313,1336.1,1336.0,0.05703362]
[1673432325504,34.33004313,1336.1,1336.0,0.05703362]
[1673432325714,32.64716968,1336.1,1336.0,0.05703362]
[1673432325973,25.16270968,1336.1,1336.0,0.05703362]
[1673432326135,32.64716968,1336.1,1336.0,0.05703362]
[1673432326356,40.13162968,1336.1,1336.0,0.05703362]
[1673432327098,41.81450313,1336.1,1336.0,0.05703362]
[1673432328251,40.13162968,1336.1,1336.0,0.05703362]
[1673432329203,41.81450313,1336.1,1336.0,0.05703362]
[1673432329831,42.93988333,1336.1,1336.0,0.05703362]
[1673432330178,44.62588333,1336.1,1336.0,0.05703362]
[1673432330405,42.38205207,1336.1,1336.0,0.05703362]
[1673432330570,44.62588333,1336.1,1336.0,0.05703362]
[1673432330762,42.38205207,1336.1,1336.0,0.05703362]
[1673432331109,44.62588333,1336.1,1336.0,0.05703362]
[1673432331715,42.38205207,1336.1,1336.0,0.05703362]
[1673432331936,44.62588333,1336.1,1336.0,0.05703362]
[1673432332567,43.1321398,1336.1,1336.0,0.05703362]
[1673432332815,49.92594386,1336.1,1336.0,0.05703362]
[1673432333124,46.88207083,1336.1,1336.0,0.05703362]
[1673432333337,46.49788669,1336.1,1336.0,0.05703362]
[1673432333721,43.69309761,1336.1,1336.0,0.05703362]
[1673432333965,46.49788669,1336.1,1336.0,0.05703362]
[1673432334174,54.36788669,1336.1,1336.0,0.05703362]
[1673432334348,54.75207083,1336.1,1336.0,0.05703362]
[1673432334770,51.94728175,1336.1,1336.0,0.05703362]
[1673432335348,54.75207083,1336.1,1336.0,0.05703362]
[1673432336439,54.75207083,1336.1,1336.0,0.05496492]
[1673432336658,53.08307083,1336.1,1336.0,0.05496492]
[1673432336993,52.69888669,1336.1,1336.0,0.05496492]
[1673432337418,52.69888669,1336.1,1336.0,0.04207733]
[1673432337419,47.70202941,1336.1,1336.0,0.04207733]
[1673432337644,6.991,1336.0,1335.9,0.04422443]
[1673432337905,33.67558965,1336.0,1335.9,0.04422443]
[1673432338071,62.97139202,1336.0,1335.9,0.04422443]
[1673432338235,80.61179202,1336.0,1335.9,0.04422443]
[1673432338668,80.61158314,1336.0,1335.9,0.04422443]
[1673432338875,78.37653468,1336.0,1335.9,0.04422443]
[1673432341004,80.61147403,1336.0,1335.9,0.04422443]
[1673432341378,77.62644695,1336.0,1335.9,0.04422443]
[1673432341658,79.86138657,1336.0,1335.9,0.04422443]
[1673432341875,79.87575882,1336.0,1335.9,0.04422443]
[1673432342014,77.64082144,1336.0,1335.9,0.04422443]
[1673432342757,75.95282144,1336.0,1335.9,0.04422443]
[1673432343846,78.18796751,1336.0,1335.9,0.04422443]
[1673432344229,75.95282144,1336.0,1335.9,0.04422443]
[1673432351394,73.15874977,1336.0,1335.9,0.04422443]
[1673432351779,73.9088375,1336.0,1335.9,0.04422443]
[1673432352834,75.5968375,1336.0,1335.9,0.04422443]
[1673432356354,78.96258439,1336.0,1335.9,0.04422443]
[1673432356740,77.27458439,1336.0,1335.9,0.04422443]
[1673432357351,73.9088375,1336.0,1335.9,0.04422443]
[1673432360455,77.27458439,1336.0,1335.9,0.04422443]
[1673432361901,77.27458439,1336.0,1335.9,0.04036384]
[1673432362538,76.52449666,1336.0,1335.9,0.04036384]
[1673432363948,77.27458439,1336.0,1335.9,0.04036384]
[1673432366553,76.52449666,1336.0,1335.9,0.04036384]
[1673432367825,74.83649666,1336.0,1335.9,0.04036384]
[1673432377726,71.47074977,1336.0,1335.9,0.04036384]
[1673432378448,74.83839522,1336.0,1335.9,0.04036384]
[1673432378833,59.86835522,1336.0,1335.9,0.04036384]
[1673432379092,56.40639522,1336.0,1335.9,0.04036384]
[1673432379253,54.70402073,1336.0,1335.9,0.04036384]
[1673432379991,54.70400132,1336.0,1335.9,0.04036384]
[1673432380936,54.93400132,1336.0,1335.9,0.04036384]
[1673432382197,52.43400132,1336.0,1335.9,0.04036384]
[1673432382613,52.99560132,1336.0,1335.9,0.04036384]
[1673432383773,52.43400132,1336.0,1335.9,0.04036384]
[1673432385866,53.00595587,1336.0,1335.9,0.04036384]
[1673432386080,53.7560436,1336.0,1335.9,0.04036384]
[1673432386546,53.7560436,1336.0,1335.9,0.03642718]
[1673432387375,49.8308375,1336.0,1335.9,0.03642718]
[1673432388326,53.19808118,1336.0,1335.9,0.03642718]
[1673432390268,53.1981618,1336.0,1335.9,0.03642718]
[1673432392428,49.8308375,1336.0,1335.9,0.03642718]
[1673432393315,53.7560436,1336.0,1335.9,0.03642718]
[1673432394012,53.7560436,1336.0,1335.9,0.9189378]
[1673432396378,53.7560436,1336.0,1335.9,0.70360319]
[1673432401907,49.8308375,1336.0,1335.9,0.70360319]
[1673432402321,53.7560436,1336.0,1335.9,0.70360319]
[1673432402557,49.8308375,1336.0,1335.9,0.70360319]
[1673432402785,51.5188375,1336.0,1335.9,0.70360319]
[1673432402955,55.4440436,1336.0,1335.9,0.70360319]
[1673432411636,51.5188375,1336.0,1335.9,0.70360319]
[1673432411848,55.4440436,1336.0,1335.9,0.70360319]
[1673432412860,55.4440436,1336.0,1335.9,0.54086404]
[1673432414535,54.69395587,1336.0,1335.9,0.54086404]
[1673432417741,55.4440436,1336.0,1335.9,0.54086404]
[1673432420466,54.69395587,1336.0,1335.9,0.54086404]
[1673432420647,55.4440436,1336.0,1335.9,0.54086404]
[1673432421362,56.0056436,1336.0,1335.9,0.54086404]
[1673432421837,56.71763933,1336.0,1335.9,0.54086404]
[1673432421989,56.71763933,1336.0,1335.8,0.04422443]
[1673432421990,61.67741206,1336.0,1335.8,0.04422443]
[1673432422206,61.67741206,1336.0,1335.7,0.05714101]
[1673432422207,17.02824239,1335.9,1335.7,0.05714101]
[1673432422547,56.38951223,1335.8,1335.7,0.05714101]
[1673432422880,80.45335667,1335.8,1335.7,0.05714101]
[1673432423039,80.45335667,1335.8,1335.7,0.04430752]
[1673432424310,83.81535667,1335.8,1335.7,0.04430752]
[1673432424602,79.88910508,1335.8,1335.7,0.04430752]
[1673432425925,79.90347957,1335.8,1335.7,0.04430752]
[1673432427490,83.26500042,1335.8,1335.7,0.04430752]
[1673432431249,79.90347957,1335.8,1335.7,0.04430752]
[1673432431622,2.5,1335.7,1335.6,8.63828675]
[1673432431802,42.52447577,1335.7,1335.6,8.63828675]
[1673432432032,42.59047577,1335.7,1335.6,8.63828675]
[1673432432403,39.23011268,1335.7,1335.6,0.13108675]
[1673432432619,39.23011268,1335.7,1335.6,0.06820036]
[1673432432945,42.03025535,1335.7,1335.6,0.06820036]
[1673432436833,41.03293331,1335.7,1335.6,0.06820036]
[1673432437050,42.02960535,1335.7,1335.6,0.06820036]
[1673432437887,40.34160535,1335.7,1335.6,0.06820036]
[1673432439706,17.88147535,1335.7,1335.6,0.06820036]
[1673432439903,40.34160535,1335.7,1335.6,0.06820036]
[1673432441017,39.22946268,1335.7,1335.6,0.06820036]
[1673432441910,42.58982577,1335.7,1335.6,0.06820036]
[1673432444598,42.58982577,1335.7,1335.6,0.06520336]
[1673432451119,42.58936118,1335.7,1335.6,0.05056765]
[1673432452438,39.22946268,1335.7,1335.6,0.05056765]
[1673432452650,39.79116268,1335.7,1335.6,0.05056765]
[1673432454030,53.90981562,1335.7,1335.6,7.65e-06]
[1673432454177,54.29399976,1335.7,1335.6,7.65e-06]
[1673432454544,53.54391203,1335.7,1335.6,7.65e-06]
[1673432454705,54.29399976,1335.7,1335.6,7.65e-06]
[1673432456799,52.60599976,1335.7,1335.6,7.65e-06]
[1673432457446,48.67974817,1335.7,1335.6,7.65e-06]
[1673432457672,40.80974817,1335.7,1335.6,7.65e-06]
[1673432458591,44.73599976,1335.7,1335.6,7.65e-06]
[1673432460056,44.35181562,1335.7,1335.6,7.65e-06]
[1673432460270,44.73599976,1335.7,1335.6,7.65e-06]
[1673432460479,44.35181562,1335.7,1335.6,7.65e-06]
[1673432460685,44.73599976,1335.7,1335.6,7.65e-06]
[1673432461129,44.73599976,1335.7,1335.5,0.06620801]
[1673432461330,50.02997028,1335.6,1335.5,0.06620801]
[1673432461578,53.09597028,1335.6,1335.5,0.06620801]
[1673432461888,54.0773048,1335.6,1335.5,0.06620801]
[1673432464834,54.82739253,1335.6,1335.5,0.06620801]
[1673432465217,54.84176702,1335.6,1335.5,0.06620801]
[1673432482038,54.84176702,1335.6,1335.5,0.06236798]
[1673432487499,51.48026738,1335.6,1335.5,0.06236798]
[1673432487758,54.84344877,1335.6,1335.5,0.06236798]
[1673432488546,51.48026738,1335.6,1335.5,0.06236798]
[1673432491075,55.40651897,1335.6,1335.5,0.06236798]
[1673432491296,51.48026738,1335.6,1335.5,0.06236798]
[1673432491513,55.40651897,1335.6,1335.5,0.06236798]
[1673432495189,55.40651897,1335.6,1335.5,0.04881976]
[1673432502435,54.65643124,1335.6,1335.5,0.04881976]
[1673432502708,55.40651897,1335.6,1335.5,0.04881976]
[1673432504590,54.65643124,1335.6,1335.5,0.04881976]
[1673432504754,55.40651897,1335.6,1335.5,0.04881976]
[1673432504961,51.48026738,1335.6,1335.5,0.04881976]
[1673432506446,54.84019345,1335.6,1335.5,0.04881976]
[1673432511067,46.58846123,1335.6,1335.5,1.47881976]
[1673432511278,37.17639671,1335.6,1335.5,1.47881976]
[1673432511488,21.83820064,1335.6,1335.5,1.47881976]
[1673432511704,14.35093064,1335.6,1335.5,1.47881976]
[1673432511949,17.15223446,1335.6,1335.5,1.63486244]
[1673432512267,21.63950446,1335.6,1335.5,1.63486244]
[1673432512413,14.15223446,1335.6,1335.5,1.63486244]
[1673432512628,23.87899215,1335.6,1335.5,1.63486244]
[1673432512840,24.10899215,1335.6,1335.5,1.63486244]
[1673432513156,15.27013805,1335.6,1335.5,1.63486244]
[1673432513378,22.75739314,1335.6,1335.5,1.63486244]
[1673432514746,22.98739314,1335.6,1335.5,1.63486244]
[1673432515783,20.74790545,1335.6,1335.5,1.63486244]
[1673432518146,21.8664609,1335.6,1335.5,1.63486244]
[1673432518872,20.74790545,1335.6,1335.5,1.63486244]
[1673432519087,29.18004359,1335.6,1335.5,0.20486244]
[1673432519240,31.41953128,1335.6,1335.5,0.04881976]
[1673432519894,29.18004359,1335.6,1335.5,0.04881976]
[1673432520241,31.41953128,1335.6,1335.5,0.04881976]
[1673432521152,29.18004359,1335.6,1335.5,0.04881976]
[1673432525665,28.23517545,1335.6,1335.5,0.04881976]
[1673432525865,30.47466314,1335.6,1335.5,0.04881976]
[1673432526823,28.23517545,1335.6,1335.5,0.04881976]
[1673432527775,30.47466314,1335.6,1335.5,0.04881976]
[1673432528959,28.79495833,1335.6,1335.5,0.04881976]
[1673432530099,31.59626215,1335.6,1335.5,0.04881976]
[1673432532858,31.59626215,1335.6,1335.5,0.04625511]
[1673432536282,34.71247593,1335.6,1335.5,0.04625511]
[1673432537016,35.46256366,1335.6,1335.5,0.04625511]
[1673432540695,32.66125984,1335.6,1335.5,0.04625511]
[1673432542730,31.91117211,1335.6,1335.5,0.04625511]
[1673432543675,35.27109818,1335.6,1335.5,0.04625511]
[1673432551446,43.51721143,1335.6,1335.5,2.16e-06]
[1673432551660,43.52221143,1335.6,1335.4,0.08160707]
[1673432551870,25.51866064,1335.5,1335.4,0.08160707]
[1673432552114,48.60995064,1335.5,1335.4,0.08160707]
[1673432552330,50.29140651,1335.5,1335.4,0.08160707]
[1673432552557,53.64736534,1335.5,1335.4,0.08160707]
[1673432552724,73.64736534,1335.5,1335.4,0.08160707]
[1673432553258,70.29140651,1335.5,1335.4,0.08160707]
[1673432554126,73.64610668,1335.5,1335.4,0.08160707]
[1673432554451,75.33410668,1335.5,1335.4,0.08160707]
[1673432555023,75.33410668,1335.5,1335.4,0.59334556]
[1673432561354,75.33410668,1335.5,1335.4,0.43991241]
[1673432564926,71.97940651,1335.5,1335.4,2.41e-06]
[1673432565164,73.93524194,1335.5,1335.4,2.41e-06]
[1673432565814,71.97940651,1335.5,1335.4,2.41e-06]
[1673432566127,75.33247359,1335.5,1335.4,2.41e-06]
[1673432566296,71.97940651,1335.5,1335.4,2.41e-06]
[1673432566764,75.33289708,1335.5,1335.4,2.41e-06]
[1673432568039,71.97940651,1335.5,1335.4,2.41e-06]
[1673432569267,75.9056581,1335.5,1335.3,0.1492453]
[1673432569474,34.10676385,1335.4,1335.3,0.1492453]
[1673432569671,34.40276385,1335.4,1335.3,0.1492453]
[1673432569879,36.08421972,1335.4,1335.3,0.1492453]